fUSD/lending_fUSD_20241121
["ID","MTS","AMOUNT","RATE_DAILY","PERIOD"]
[342919496,1732205438617,-161.31,0.00034177,2]
[342919497,1732205438627,-250.0,0.00034527,2]
[342919498,1732205438636,-200.0,0.00034543,2]
[342919499,1732205438646,-250.0,0.000346,120]
[342919500,1732205438658,-250.0,0.0003464,2]
[342919501,1732205438669,-890.46,0.00034692,2]
[342919502,1732205438678,-2612.88,0.00034762,2]
[342919503,1732205438687,-828.64,0.00034769,2]
[342919504,1732205438698,-195.6,0.00034796,120]
[342919505,1732205438707,-250.0,0.00034847,2]
[342919506,1732205438717,-1442.24596314,0.00034919,2]
[342919507,1732205438746,-230.43403686,0.00034919,2]
[342919508,1732205438756,-23900.0,0.00034919,2]
[342919509,1732205438766,-177.23,0.00034968,120]
[342919510,1732205438775,-500.0,0.00034992,2]
[342919511,1732205438785,-243.59,0.00034993,2]
[342919512,1732205438794,-350.0,0.00035,2]
[342919513,1732205438804,-802.1,0.00035036,2]
[342919514,1732205438813,-339.0,0.00035229,2]
[342919516,1732205438823,-339.0,0.00035238,2]
[342919518,1732205438833,-339.0,0.00035247,2]
[342919520,1732205438843,-339.0,0.00035257,2]
[342919522,1732205438852,-339.0,0.00035266,2]
[342919524,1732205438863,-339.0,0.00035275,2]
[342919526,1732205438873,-339.0,0.00035285,2]
[342919528,1732205438882,-339.0,0.00035294,2]
[342919530,1732205438891,-339.0,0.00035303,2]
[342919531,1732205438901,-339.0,0.00035312,2]
[342919532,1732205438910,-327.26,0.0003532,10]
[342919533,1732205438920,-295.7,0.0003532,10]
[342919534,1732205438930,-461.68,0.0003532,10]
[342919535,1732205438939,-339.0,0.00035322,2]
[342919536,1732205438951,-384.73,0.00035323,10]
[342919537,1732205438962,-180.87,0.00035329,2]
[342919538,1732205438971,-21969.23425542,0.0003533,2]
[342919539,1732205438982,-339.0,0.00035331,2]
[342919540,1732205438992,-1292.26,0.00035333,2]
[342919541,1732205439002,-1396.49,0.00035333,2]
[342919550,1732205439200,-47289.58,0.0003534,2]
[342919551,1732205439210,-339.0,0.0003534,2]
[342919552,1732205439220,-339.0,0.00035349,2]
[342919553,1732205439230,-339.0,0.00035359,2]
[342919554,1732205439240,-339.0,0.00035368,2]
[342919555,1732205439249,-339.0,0.00035377,2]
[342919556,1732205439259,-813.02,0.00035382,2]
[342919557,1732205439269,-339.0,0.00035386,2]
[342919558,1732205439279,-752.24,0.00035392,120]
[342919559,1732205439289,-339.0,0.00035396,2]
[342919560,1732205439298,-339.0,0.00035405,2]
[342919561,1732205439307,-4045.63,0.00035454,2]
[342919562,1732205439317,-1000.0,0.00035621,2]
[342919563,1732205439326,-165.45,0.00035659,2]
[342919564,1732205439336,-1500.0,0.00035663,120]
[342919565,1732205439345,-939.8801586,0.00035856,2]
[342919566,1732205439358,-60.1198414,0.00035856,2]
[342919567,1732205439367,-397.54915375,0.00035949,2]
[342919568,1732205439379,-519.65939079,0.00035949,2]
[342919576,1732205440471,-449.2472519,0.00034868,2]
[342919577,1732205440533,-216.88246004,0.00034868,2]
[342919578,1732205440543,-345.49965916,0.00035949,2]
[342919579,1732205440686,-369.9717963,0.00035949,2]
[342919580,1732205440696,-290.37,0.0003615,2]
[342919581,1732205440707,-166.69081177,0.00036209,2]
[342919582,1732205440717,-82.43907371,0.00036309,44]
[342919583,1732205440729,-611.24769542,0.00036309,44]
[342919589,1732205443317,-1840.83333585,0.00036309,44]
[342919590,1732205443329,-2513.58589502,0.00036309,44]
[342919591,1732205443338,-225.327,0.00036309,44]
[342919592,1732205443347,-291.2745641,0.00036319,120]
[342919593,1732205443357,-767.43977211,0.00036319,120]
[342919594,1732205443366,-162.10406828,0.00036319,120]
[342919595,1732205443376,-372.22911655,0.00036319,2]
[342919596,1732205443386,-600.0,0.000364,120]
[342919597,1732205443395,-534.78,0.00036568,120]
[342919598,1732205443406,-571.51,0.00036887,2]
[342919599,1732205443416,-4293.73292965,0.00036999,15]
[342919600,1732205443434,-189.41185429,0.00037,2]
[342919601,1732205443446,-210.58814571,0.00037,2]
[342919602,1732205443456,-434.7766032,0.00037099,2]
[342919603,1732205443467,-611.38435315,0.00037099,2]
[342919604,1732205443478,-246.09904365,0.00037099,2]
[342919605,1732205443488,-831.61501263,0.00037183,2]
[342919606,1732205443508,-168.38498737,0.00037183,2]
[342919607,1732205443517,-457.90268636,0.000373,15]
[342919608,1732205443528,-42.09731364,0.000373,15]
[342919609,1732205443538,-195.6,0.0003738,120]
[342919610,1732205443547,-290.37,0.0003752,2]
[342919611,1732205443557,-154.7,0.00037525,2]
[342919612,1732205443566,-813.02,0.00037646,2]
[342919613,1732205443576,-3629.56585197,0.000378,5]
[342919614,1732205443707,-644.56697023,0.000378,5]
[342919615,1732205443765,-106.36100348,0.000378,5]
[342919616,1732205443781,-633.28745772,0.000378,5]
[342919617,1732205443793,-1681.31590721,0.000378,5]
[342919636,1732205446389,-1426.14,0.000378,5]
[342919637,1732205446447,-1290.76280939,0.000378,5]
[342919638,1732205446457,-166.1,0.00037919,2]
[342919639,1732205446466,-193.82816502,0.00038,120]
[342919640,1732205446501,-573.61160709,0.00038,120]
[342919641,1732205446511,-162.10406828,0.00038,120]
[342919642,1732205446519,-210.0,0.0003821,2]
[342919643,1732205446529,-4293.73292959,0.0003821,15]
[342919644,1732205446538,-14131.46417348,0.00038243,2]
[342919645,1732205446549,-629.06072571,0.00038243,2]
[342919646,1732205446560,-986.22,0.00038243,2]
[342919647,1732205446639,-254.370035,0.00038243,2]
[342919648,1732205446651,-63100.33795235,0.00038243,2]
[342919649,1732205446666,-730.90695609,0.00038243,2]
[342919650,1732205446678,-2029.83304342,0.00038243,2]
[342919651,1732205446691,-646.32040472,0.00038243,2]
[342919652,1732205446703,-902.12530247,0.00038243,2]
[342919653,1732205506505,454.70668935,0.00015,2]
[342919654,1732205506526,599.91684129,0.00015,2]
[342919655,1732205506548,440.92696986,0.00015,2]
[342919656,1732205506569,549.78,0.00015,2]
[342919657,1732205506590,29.17610675,0.00015,2]
[342919658,1732205506611,609.56,0.00015,2]
[342919662,1732205812507,-471.93339275,0.00015,2]
[342919663,1732205812532,-150.0,0.00016485,2]
[342919664,1732205812556,-174.18825,0.00023303,2]
[342919665,1732205812580,-500.0,0.00024932,2]
[342919666,1732205812604,-154.66,0.00029907,2]
[342919667,1732205812628,-160.74009592,0.00035232,2]
[342919668,1732205812651,-217.18840158,0.00035232,2]
[342919669,1732205812676,-160.7400959,0.00035233,2]
[342919670,1732205812700,-150.0,0.00035332,2]
[342919671,1732205812725,-400.0,0.00035332,3]
[342919672,1732205812749,-1000.0,0.00035333,2]
[342919673,1732205812775,-1000.0,0.00035333,2]
[342919674,1732205812799,-1000.0,0.00035333,2]
[342919675,1732205812823,-1000.0,0.00035333,2]
[342919676,1732205812847,-1000.0,0.00035333,2]
[342919677,1732205812870,-1000.0,0.00035333,2]
[342919678,1732205812894,-1000.0,0.00035333,2]
[342919679,1732205812918,-1000.0,0.00035333,2]
[342919680,1732205812942,-586.0,0.00035333,2]
[342919681,1732205812964,-1500.0,0.00036927,120]
[342919682,1732205812988,-200.0,0.00036927,2]
[342919683,1732205813011,-153.0,0.00037,120]
[342919684,1732205813033,-1000.0,0.00037011,2]
[342919685,1732205813344,-150.0,0.0003704,2]
[342919686,1732205813366,-2320.58,0.00037071,2]
[342919687,1732205813390,-243.48,0.00037217,120]
[342919688,1732205813414,-165.91,0.00037292,2]
[342919689,1732205813440,-821.9,0.00037359,2]
[342919690,1732205813464,-500.0,0.00037557,2]
[342919691,1732205813489,-7694.21,0.00037588,2]
[342919692,1732205813517,-1000.0,0.00037731,2]
[342919693,1732205813544,-572.17,0.00037787,120]
[342919694,1732205813569,-200.0,0.0003787,3]
[342919695,1732205813594,-3486.18253609,0.00038142,15]
[342919696,1732205813618,-427.57,0.0003823,2]
[342919697,1732205813642,-156.69,0.0003823,3]
[342919698,1732205813666,-470.11,0.0003823,3]
[342919699,1732205813694,-312.16004213,0.0003823,2]
[342919700,1732205813718,-427.57,0.0003823,2]
[342919701,1732205813742,-427.57,0.0003823,2]
[342919702,1732205813767,-378.18,0.0003823,10]
[342919703,1732205813793,-417.01,0.0003823,10]
[342919704,1732205813824,-1000.0,0.00038239,2]
[342919705,1732205813849,-12000.0,0.0003824,120]
[342919706,1732205813874,-210.0,0.0003824,2]
[342919707,1732205813899,-247221.26237488,0.0003824,2]
[342919708,1732205813927,-17833.0,0.00038242,2]
[342919709,1732205813958,-200.0,0.00038243,2]
[342919710,1732205813983,-167.23637626,0.00038256,2]
[342919711,1732205814006,-500.0,0.00038356,11]
[342919712,1732205814030,-500.0,0.00038356,11]
[342919713,1732205814053,-500.0,0.00038356,2]
[342919714,1732205814077,-500.0,0.00038356,11]
[342919715,1732205814101,-500.0,0.00038356,11]
[342919716,1732205814126,-500.0,0.00038356,11]
[342919717,1732205814149,-500.0,0.00038356,11]
[342919718,1732205814174,-500.0,0.00038356,11]
[342919719,1732205814201,-500.0,0.00038356,11]
[342919720,1732205814224,-500.0,0.00038356,11]
[342919721,1732205814247,-500.0,0.00038356,11]
[342919722,1732205814272,-500.0,0.00038356,11]
[342919723,1732205814294,-500.0,0.00038356,11]
[342919724,1732205814317,-500.0,0.00038356,11]
[342919725,1732205814340,-500.0,0.00038356,11]
[342919726,1732205814364,-500.0,0.00038356,11]
[342919727,1732205814387,-500.0,0.00038356,11]
[342919728,1732205814410,-500.0,0.00038356,11]
[342919729,1732205814432,-500.0,0.00038356,11]
[342919730,1732205814459,-500.0,0.00038356,11]
[342919731,1732205814482,-500.0,0.00038356,11]
[342919732,1732205814507,-500.0,0.00038356,11]
[342919733,1732205814529,-500.0,0.00038356,11]
[342919734,1732205814553,-500.0,0.00038356,11]
[342919735,1732205814578,-587.39,0.00038356,11]
[342919736,1732205814600,-500.0,0.00038356,11]
[342919737,1732205814623,-500.0,0.00038356,11]
[342919738,1732205814645,-500.0,0.00038356,11]
[342919739,1732205814668,-500.0,0.00038356,11]
[342919740,1732205814697,-500.0,0.00038356,11]
[342919741,1732205814719,-500.0,0.00038356,11]
[342919742,1732205814742,-500.0,0.00038356,11]
[342919743,1732205814764,-593.42,0.00038356,11]
[342919744,1732205814788,-520.0096809,0.00038356,11]
[342919745,1732205814812,-500.0,0.00038356,11]
[342919746,1732205814835,-459.79109864,0.00038356,11]
[342919747,1732205814860,-965.61,0.00038356,11]
[342919748,1732205814885,-500.0,0.00038356,11]
[342919749,1732205814910,-533.12,0.00038356,11]
[342919750,1732205814933,-500.0,0.00038356,11]
[342919751,1732205814964,-500.0,0.00038356,11]
[342919752,1732205814986,-500.0,0.00038356,11]
[342919753,1732205815010,-500.0,0.00038356,11]
[342919754,1732205815032,-500.0,0.00038356,11]
[342919755,1732205815055,-500.0,0.00038356,11]
[342919756,1732205815077,-2551.55,0.00038356,11]
[342919757,1732205815100,-500.0,0.00038356,11]
[342919758,1732205815122,-500.0,0.00038356,11]
[342919759,1732205815145,-500.0,0.00038356,11]
[342919760,1732205815170,-536.60736546,0.00038356,11]
[342919761,1732205815198,-500.0,0.00038356,11]
[342919762,1732205815221,-500.0,0.00038356,11]
[342919763,1732205815245,-500.0,0.00038356,11]
[342919764,1732205815269,-5522.61,0.00038356,11]
[342919765,1732205815292,-500.0,0.00038356,11]
[342919766,1732205815314,-500.0,0.00038356,11]
[342919767,1732205815337,-500.0,0.00038356,11]
[342919768,1732205815361,-852.31,0.00038356,11]
[342919769,1732205815383,-500.0,0.00038356,11]
[342919770,1732205815408,-518.66,0.00038356,11]
[342919771,1732205815431,-500.0,0.00038356,11]
[342919772,1732205815505,-500.0,0.00038356,11]
[342919773,1732205815528,-500.0,0.00038356,11]
[342919774,1732205815551,-500.0,0.00038356,11]
[342919775,1732205815575,-1209.99,0.00038356,11]
[342919776,1732205815599,-990.48,0.00038356,11]
[342919777,1732205815622,-500.0,0.00038356,11]
[342919778,1732205815645,-907.01,0.00038356,11]
[342919779,1732205815667,-814.55,0.00038356,11]
[342919780,1732205815694,-500.0,0.00038356,11]
[342919781,1732205815717,-500.0,0.00038356,11]
[342919782,1732205815739,-500.0,0.00038356,11]
[342919783,1732205815762,-1365.94,0.00038356,11]
[342919784,1732205815785,-500.0,0.00038356,11]
[342919785,1732205815808,-500.0,0.00038356,11]
[342919786,1732205815832,-500.0,0.00038356,11]
[342919787,1732205815855,-5153.008403,0.00038356,11]
[342919788,1732205815879,-500.0,0.00038356,11]
[342919789,1732205815903,-500.0,0.00038356,11]
[342919790,1732205815927,-500.0,0.00038356,11]
[342919791,1732205815955,-617.97,0.00038356,11]
[342919792,1732205815978,-500.0,0.00038356,11]
[342919793,1732205816001,-500.0,0.00038356,11]
[342919794,1732205816025,-500.0,0.00038356,11]
[342919795,1732205816048,-500.0,0.00038356,11]
[342919796,1732205816072,-500.0,0.00038356,11]
[342919797,1732205816095,-500.0,0.00038356,11]
[342919798,1732205816118,-313.05928644,0.00038356,11]
[342919799,1732205816141,-500.0,0.00038356,11]
[342919800,1732205816164,-500.0,0.00038356,11]
[342919801,1732205816186,-500.0,0.00038356,11]
[342919802,1732205816212,-500.0,0.00038356,11]
[342919803,1732205816235,-500.0,0.00038356,11]
[342919804,1732205816257,-581.21,0.00038356,11]
[342919805,1732205816279,-171.857632,0.00038356,11]
[342919806,1732205816302,-500.0,0.00038356,11]
[342919807,1732205816327,-1088.08,0.00038356,11]
[342919808,1732205816349,-957.51,0.00038356,11]
[342919809,1732205816374,-696.72,0.00038356,11]
[342919810,1732205816396,-500.0,0.00038356,11]
[342919811,1732205816420,-500.0,0.00038356,11]
[342919812,1732205816446,-500.0,0.00038356,11]
[342919813,1732205816469,-500.0,0.00038356,11]
[342919814,1732205816494,-500.0,0.00038356,11]
[342919815,1732205816517,-206.11422764,0.00038356,11]
[342919816,1732205816540,-500.0,0.00038356,11]
[342919817,1732205816563,-500.0,0.00038356,11]
[342919818,1732205816588,-500.0,0.00038356,11]
[342919819,1732205816610,-1365.11,0.00038356,11]
[342919820,1732205816631,-500.0,0.00038356,11]
[342919821,1732205816653,-500.0,0.00038356,11]
[342919822,1732205816678,-500.0,0.00038356,11]
[342919823,1732205816701,-500.0,0.00038356,11]
[342919824,1732205816724,-618.359636,0.00038356,11]
[342919825,1732205816747,-6749.541675,0.00038356,11]
[342919826,1732205816769,-1247.408964,0.00038356,11]
[342919827,1732205816791,-1623.72,0.00038356,11]
[342919828,1732205816813,-500.0,0.00038356,11]
[342919829,1732205816836,-500.0,0.00038356,11]
[342919830,1732205816859,-500.0,0.00038356,11]
[342919831,1732205816883,-917.82,0.00038356,11]
[342919832,1732205816906,-500.0,0.00038356,11]
[342919833,1732205816930,-500.0,0.00038356,11]
[342919834,1732205816957,-1855.34,0.00038356,11]
[342919835,1732205816980,-3114.27,0.00038356,11]
[342919836,1732205817003,-500.0,0.00038356,11]
[342919837,1732205817028,-500.0,0.00038356,11]
[342919838,1732205817050,-500.0,0.00038356,11]
[342919839,1732205817073,-500.0,0.00038356,11]
[342919840,1732205817095,-500.0,0.00038356,11]
[342919841,1732205817119,-500.0,0.00038356,11]
[342919842,1732205817142,-500.0,0.00038356,11]
[342919843,1732205817170,-500.0,0.00038356,11]
[342919844,1732205817196,-811.96,0.00038356,11]
[342919845,1732205817218,-500.0,0.00038356,11]
[342919846,1732205817240,-879.01,0.00038356,11]
[342919847,1732205817263,-500.0,0.00038356,11]
[342919848,1732205817286,-3832.73,0.00038356,11]
[342919849,1732205817309,-500.0,0.00038356,11]
[342919850,1732205817332,-500.0,0.00038356,11]
[342919851,1732205817354,-500.0,0.00038356,11]
[342919852,1732205817377,-500.0,0.00038356,11]
[342919853,1732205817400,-500.0,0.00038356,11]
[342919854,1732205817424,-500.0,0.00038356,11]
[342919855,1732205817450,-500.0,0.00038356,11]
[342919856,1732205817473,-500.0,0.00038356,11]
[342919857,1732205817497,-615.73,0.00038356,11]
[342919858,1732205817520,-500.0,0.00038356,11]
[342919859,1732205817545,-500.0,0.00038356,11]
[342919860,1732205817568,-1889.7,0.00038356,11]
[342919861,1732205817593,-1449.57,0.00038356,11]
[342919862,1732205817616,-534.5,0.00038356,11]
[342919863,1732205817639,-1321.05,0.00038356,11]
[342919864,1732205817663,-500.0,0.00038356,11]
[342919865,1732205817686,-470.0,0.00038626,11]
[342919866,1732205817712,-500.0,0.00038626,11]
[342919867,1732205817736,-2177.78,0.00038626,11]
[342919868,1732205817759,-555.06,0.00038626,11]
[342919869,1732205817783,-861.39,0.00038626,11]
[342919870,1732205817807,-641.65,0.00038626,11]
[342919871,1732205817830,-1368.85,0.00038626,11]
[342919872,1732205817853,-5725.67,0.00038626,2]
[342919873,1732205817876,-500.0,0.00038626,11]
[342919874,1732205817899,-500.0,0.00038626,11]
[342919875,1732205817922,-500.0,0.00038626,11]
[342919876,1732205817948,-500.0,0.00038626,11]
[342919877,1732205817972,-1446.05,0.00038626,11]
[342919878,1732205817996,-7663.76,0.00038626,11]
[342919879,1732205818019,-1450.53,0.00038626,11]
[342919880,1732205818043,-815.0,0.00038626,11]
[342919881,1732205818066,-500.0,0.00038626,11]
[342919882,1732205818089,-500.0,0.00038626,11]
[342919883,1732205818111,-500.0,0.00038626,11]
[342919884,1732205818136,-1452.63,0.00038626,11]
[342919885,1732205818160,-3348.32,0.00038626,11]
[342919886,1732205818183,-500.0,0.00038626,7]
[342919887,1732205818214,-500.0,0.00038626,11]
[342919888,1732205818237,-1172.0,0.00038626,11]
[342919889,1732205818260,-1152.31,0.00038626,11]
[342919890,1732205818283,-500.0,0.00038627,11]
[342919891,1732205818307,-500.0,0.00038627,11]
[342919892,1732205818330,-500.0,0.00038627,11]
[342919893,1732205818352,-500.0,0.00038627,11]
[342919894,1732205818375,-500.0,0.00038627,11]
[342919895,1732205818397,-500.0,0.00038627,11]
[342919896,1732205818420,-500.0,0.00038627,11]
[342919897,1732205818445,-500.0,0.00038627,11]
[342919898,1732205818468,-301.20381795,0.00038627,11]
[342919899,1732205818493,-500.0,0.00038627,11]
[342919900,1732205818518,-500.0,0.00038627,11]
[342919901,1732205818543,-500.0,0.00038627,11]
[342919902,1732205818567,-500.0,0.00038627,11]
[342919903,1732205818592,-500.0,0.00038627,11]
[342919904,1732205818615,-500.0,0.00038627,11]
[342919905,1732205818639,-500.0,0.00038627,11]
[342919906,1732205818664,-438.49220837,0.00038627,11]
[342919907,1732205818796,-500.0,0.00038627,11]
[342919908,1732205818820,-618.7349572,0.00038627,11]
[342919909,1732205818844,-500.0,0.00038627,11]
[342919910,1732205818867,-500.0,0.00038627,11]
[342919911,1732205818890,-500.0,0.00038627,11]
[342919912,1732205818913,-500.0,0.00038627,11]
[342919913,1732205818936,-500.0,0.00038627,11]
[342919914,1732205818961,-500.0,0.00038627,11]
[342919915,1732205818985,-500.0,0.00038627,11]
[342919916,1732205819009,-500.0,0.00038627,11]
[342919917,1732205819032,-178.42182771,0.00038627,11]
[342919918,1732205819055,-500.0,0.00038627,11]
[342919919,1732205819080,-500.0,0.00038627,11]
[342919920,1732205819102,-500.0,0.00038627,11]
[342919921,1732205819126,-500.0,0.00038627,11]
[342919922,1732205819150,-500.0,0.00038627,11]
[342919923,1732205819174,-500.37715256,0.00038627,11]
[342919924,1732205819199,-500.0,0.00038627,11]
[342919925,1732205819221,-500.0,0.00038627,11]
[342919926,1732205819244,-500.0,0.00038627,11]
[342919927,1732205819266,-500.0,0.00038627,11]
[342919928,1732205819289,-500.0,0.00038627,11]
[342919929,1732205819311,-500.0,0.00038627,11]
[342919930,1732205819334,-500.0,0.00038627,11]
[342919931,1732205819356,-500.0,0.00038627,11]
[342919932,1732205819380,-500.0,0.00038627,11]
[342919933,1732205819402,-500.0,0.00038627,11]
[342919934,1732205819426,-500.0,0.00038627,11]
[342919935,1732205819449,-500.0,0.00038627,11]
[342919936,1732205819471,-500.0,0.00038627,11]
[342919937,1732205819495,-500.0,0.00038627,11]
[342919938,1732205819520,-500.0,0.00038627,11]
[342919939,1732205819544,-500.0,0.00038627,11]
[342919940,1732205819566,-500.0,0.00038627,11]
[342919941,1732205819589,-500.0,0.00038627,11]
[342919942,1732205819610,-500.0,0.00038627,11]
[342919943,1732205819634,-500.0,0.00038627,11]
[342919944,1732205819656,-500.0,0.00038627,11]
[342919945,1732205819678,-500.0,0.00038627,11]
[342919946,1732205819703,-500.0,0.00038627,11]
[342919947,1732205819725,-500.0,0.00038627,7]
[342919948,1732205819752,-500.0,0.00038627,11]
[342919949,1732205819775,-500.0,0.00038627,11]
[342919950,1732205819798,-500.0,0.00038627,11]
[342919951,1732205819820,-252.4695297,0.00038627,11]
[342919952,1732205819843,-500.0,0.00038627,11]
[342919953,1732205819865,-500.0,0.00038627,11]
[342919954,1732205819889,-500.0,0.00038627,11]
[342919955,1732205819912,-500.0,0.00038627,11]
[342919956,1732205819936,-500.0,0.00038627,7]
[342919957,1732205819962,-500.0,0.00038627,11]
[342919958,1732205819986,-500.0,0.00038627,11]
[342919959,1732205820010,-500.0,0.00038627,11]
[342919960,1732205820033,-500.0,0.00038627,11]
[342919961,1732205820058,-500.0,0.00038627,11]
[342919962,1732205820082,-500.0,0.00038627,11]
[342919963,1732205820106,-500.0,0.00038627,11]
[342919964,1732205820129,-575.00055179,0.00038627,11]
[342919965,1732205820151,-500.0,0.00038627,11]
[342919966,1732205820174,-500.0,0.00038627,11]
[342919967,1732205820199,-500.0,0.00038627,11]
[342919968,1732205820223,-500.0,0.00038627,11]
[342919969,1732205820246,-500.0,0.00038627,11]
[342919970,1732205820269,-500.0,0.00038627,11]
[342919971,1732205820293,-368.87107635,0.00038627,11]
[342919972,1732205820316,-500.0,0.00038627,11]
[342919973,1732205820339,-500.0,0.00038627,11]
[342919974,1732205820362,-500.0,0.00038627,11]
[342919975,1732205820385,-500.0,0.00038627,11]
[342919976,1732205820407,-500.0,0.00038627,11]
[342919977,1732205820430,-500.0,0.00038627,11]
[342919978,1732205820455,-500.0,0.00038627,11]
[342919979,1732205820478,-500.0,0.00038627,11]
[342919980,1732205820504,-500.0,0.00038627,11]
[342919981,1732205820526,-500.0,0.00038627,11]
[342919982,1732205820550,-500.0,0.00038627,11]
[342919983,1732205820572,-500.0,0.00038627,11]
[342919984,1732205820594,-500.0,0.00038627,11]
[342919985,1732205820616,-500.0,0.00038627,11]
[342919986,1732205820638,-500.0,0.00038627,11]
[342919987,1732205820659,-500.0,0.00038627,11]
[342919988,1732205820682,-500.0,0.00038627,11]
[342919989,1732205820707,-500.0,0.00038627,11]
[342919990,1732205820730,-615.56966288,0.00038627,11]
[342919991,1732205820753,-500.0,0.00038627,11]
[342919992,1732205820775,-500.0,0.00038627,11]
[342919993,1732205820798,-500.0,0.00038627,11]
[342919994,1732205820822,-500.0,0.00038627,11]
[342919995,1732205820845,-500.0,0.00038627,11]
[342919996,1732205820868,-500.0,0.00038627,11]
[342919997,1732205820890,-500.0,0.00038627,11]
[342919998,1732205820912,-500.0,0.00038627,11]
[342919999,1732205820934,-500.0,0.00038627,11]
[342920000,1732205820960,-500.0,0.00038627,11]
[342920001,1732205820982,-500.0,0.00038627,11]
[342920002,1732205821005,-500.0,0.00038627,11]
[342920003,1732205821026,-161.69269007,0.00038627,11]
[342920004,1732205821048,-500.0,0.00038627,11]
[342920005,1732205821070,-500.0,0.00038627,11]
[342920006,1732205821092,-418.67129311,0.00038627,11]
[342920007,1732205821115,-500.0,0.00038627,11]
[342920008,1732205821137,-500.0,0.00038627,11]
[342920009,1732205821402,-500.0,0.00038627,7]
[342920010,1732205821427,-500.0,0.00038627,11]
[342920011,1732205821456,-500.0,0.00038627,11]
[342920012,1732205821481,-500.0,0.00038627,11]
[342920013,1732205821509,-500.0,0.00038627,11]
[342920014,1732205821533,-500.0,0.00038627,11]
[342920015,1732205821558,-500.0,0.00038627,11]
[342920016,1732205821583,-627.13960705,0.00038627,11]
[342920017,1732205821606,-500.0,0.00038627,11]
[342920018,1732205821629,-500.0,0.00038627,11]
[342920019,1732205821652,-500.0,0.00038627,11]
[342920020,1732205821676,-500.0,0.00038627,11]
[342920021,1732205821704,-500.0,0.00038627,11]
[342920022,1732205821728,-500.0,0.00038627,11]
[342920023,1732205821752,-500.0,0.00038627,11]
[342920024,1732205821777,-500.0,0.00038627,11]
[342920025,1732205821800,-500.0,0.00038627,11]
[342920026,1732205821824,-500.0,0.00038627,11]
[342920027,1732205821847,-500.0,0.00038627,11]
[342920028,1732205821871,-500.0,0.00038627,11]
[342920029,1732205821895,-2800.65,0.00038627,11]
[342920030,1732205821919,-500.0,0.00038627,11]
[342920031,1732205821947,-1355.81,0.00038627,11]
[342920032,1732205821970,-500.0,0.00038627,11]
[342920033,1732205821995,-500.0,0.00038627,11]
[342920034,1732205822017,-558.81,0.00038627,11]
[342920035,1732205822042,-500.0,0.00038627,11]
[342920036,1732205822066,-573.38,0.00038627,11]
[342920037,1732205822090,-616.00773487,0.00038627,11]
[342920038,1732205822113,-500.0,0.00038627,11]
[342920039,1732205822136,-500.0,0.00038627,11]
[342920040,1732205822160,-1467.56,0.00038627,11]
[342920041,1732205822189,-1017.23,0.00038627,11]
[342920042,1732205822218,-500.0,0.00038627,11]
[342920043,1732205822243,-531.63,0.00038627,11]
[342920044,1732205822269,-500.0,0.00038627,11]